bitfinex-derivatives/quotes_BTCF0:USTF0_20251216
["timestamp","ask_amount","ask_price","bid_price","bid_amount"]
[1765866400119,0.0518707,86444.0,86443.0,0.08559079]
[1765866402832,0.0403,86444.0,86443.0,0.08559079]
[1765866410622,0.02015,86444.0,86443.0,0.08559079]
[1765866413338,0.0474296,86452.0,86451.0,0.09503]
[1765866413536,0.03586,86452.0,86451.0,0.1065997]
[1765866418439,0.04791218,86458.0,86457.0,0.09503]
[1765866420040,0.03634328,86458.0,86457.0,0.09503]
[1765866420538,0.01939328,86458.0,86457.0,0.09503]
[1765866420744,0.00231328,86458.0,86457.0,0.09503]
[1765866420942,0.01899328,86458.0,86457.0,0.09503]
[1765866421145,0.00231328,86458.0,86457.0,0.45583]
[1765866421644,0.01899328,86458.0,86457.0,0.45583]
[1765866422046,0.00231328,86458.0,86457.0,0.45583]
[1765866422843,0.01886328,86458.0,86457.0,0.45583]
[1765866423043,0.00231328,86458.0,86457.0,0.45583]
[1765866424640,0.00196595,86458.0,86457.0,0.45583]
[1765866425828,0.00196595,86458.0,86457.0,0.45683]
[1765866426231,0.0115671,86471.0,86457.0,0.45683]
[1765866426232,0.01592,86471.0,86470.0,0.0825272]
[1765866426432,0.01592,86471.0,86470.0,0.4433272]
[1765866426734,0.03368,86471.0,86470.0,0.4433272]
[1765866427135,0.0470865,86475.0,86474.0,0.07096]
[1765866431536,0.03552,86475.0,86474.0,0.07096]
[1765866433447,0.01776,86475.0,86474.0,0.07096]
[1765866434950,0.03472,86475.0,86474.0,0.07096]
[1765866443546,0.03108,86473.0,86472.0,0.02144]
[1765866443751,0.03108,86470.0,86469.0,0.02144]
[1765866444342,0.03089,86467.0,86460.0,0.091131]
[1765866444546,0.042458,86464.0,86460.0,0.091131]
[1765866444748,0.042458,86464.0,86460.0,0.02144]
[1765866445554,0.042458,86464.0,86463.0,0.0924]
[1765866446658,0.042458,86464.0,86463.0,0.0934]
[1765866447049,0.042458,86464.0,86463.0,0.1049681]
[1765866447449,0.042458,86464.0,86463.0,0.0934]
[1765866452250,0.042458,86464.0,86463.0,0.05823]
[1765866452660,0.042458,86464.0,86463.0,0.09217]
[1765866454257,0.042458,86464.0,86463.0,0.09117]
[1765866454458,0.042458,86464.0,86463.0,0.09217]
[1765866462772,0.03089,86464.0,86463.0,0.09217]
[1765866465062,0.03089,86464.0,86463.0,0.1037381]
[1765866466568,0.3837568,86473.0,86472.0,0.08629]
[1765866466772,0.42518725,86473.0,86472.0,0.08629]
[1765866466974,0.06438725,86473.0,86472.0,0.08629]
[1765866481682,0.03004045,86473.0,86472.0,0.08629]
[1765866481889,0.0115661,86478.0,86477.0,0.06713]
[1765866482085,0.0115661,86478.0,86475.0,0.01916]
[1765866482086,0.04887587,86488.0,86487.0,0.08629]
[1765866482294,0.04887587,86488.0,86487.0,0.44709]
[1765866482295,0.0394585,86488.0,86487.0,0.44709]
[1765866482594,0.02,86494.0,86493.0,0.06589]
[1765866483185,0.02,86494.0,86493.0,0.16979946]
[1765866483388,0.02,86494.0,86493.0,0.07752842]
[1765866483590,0.05313,86494.0,86493.0,0.07752842]
[1765866483791,0.05313,86494.0,86493.0,0.07852842]
[1765866483997,0.02,86494.0,86493.0,0.07852842]
[1765866484699,0.06641,86480.0,86472.0,0.01196237]
[1765866484995,0.0757,86480.0,86470.0,0.01828]
[1765866485187,0.0779771,86471.0,86470.0,0.06589]
[1765866487187,0.06641,86463.0,86462.0,0.00017351]
[1765866487492,0.0779797,86451.0,86450.0,0.06598022]
[1765866488793,0.0779797,86451.0,86450.0,0.00109022]
[1765866489101,0.0779808,86443.0,86442.0,0.06606351]
[1765866489298,0.0779808,86443.0,86442.0,0.03288351]
[1765866489496,0.0779808,86443.0,86442.0,0.00017351]
[1765866490098,0.07807102,86443.0,86442.0,0.03288351]
[1765866490704,0.07807102,86443.0,86442.0,0.00017351]
[1765866492502,0.0447023,86432.0,86431.0,0.42669]
[1765866492701,0.0779823,86432.0,86431.0,0.42669]
[1765866494504,0.0779823,86432.0,86431.0,0.06689]
[1765866494891,0.0779823,86432.0,86431.0,0.06789]
[1765866495493,0.0779823,86432.0,86431.0,0.06689]
[1765866495697,0.0779823,86432.0,86431.0,0.06589]
[1765866496201,0.0447023,86432.0,86431.0,0.06589]
[1765866496406,0.0779823,86432.0,86431.0,0.06589]
[1765866497907,0.0979534,86424.0,86423.0,0.06606351]
[1765866498496,0.09804362,86424.0,86423.0,0.06606351]
[1765866499012,0.09804362,86424.0,86423.0,0.06706351]
[1765866500715,0.09804362,86424.0,86423.0,0.06606351]
[1765866502608,0.09804362,86424.0,86423.0,0.03288351]
[1765866502808,0.09804362,86424.0,86423.0,0.00017351]
[1765866503008,0.09804362,86424.0,86423.0,0.03288351]
[1765866503408,0.09804362,86424.0,86423.0,0.00017351]
[1765866503714,0.077984,86419.0,86418.0,0.03502435]
[1765866504211,0.077984,86419.0,86418.0,0.06820435]
[1765866511017,0.044704,86419.0,86418.0,0.06820435]
[1765866511510,0.077984,86419.0,86418.0,0.06820435]
[1765866515313,0.07356362,86424.0,86423.0,0.06]
[1765866515616,9.022e-05,86424.0,86423.0,0.06]
[1765866516113,0.06199022,86424.0,86423.0,0.06]
[1765866518824,9.022e-05,86424.0,86423.0,0.06]
[1765866521627,0.06199022,86424.0,86423.0,0.06]
[1765866522421,9.022e-05,86424.0,86423.0,0.06]
[1765866523217,0.03006622,86424.0,86423.0,0.06]
[1765866524621,9.022e-05,86424.0,86423.0,0.06]
[1765866525523,0.03092022,86424.0,86423.0,0.06]
[1765866525925,0.06199022,86424.0,86423.0,0.06]
[1765866529729,0.09197588,86424.0,86423.0,0.06]
[1765866535624,0.073474,86419.0,86418.0,0.06231435]
[1765866542347,0.073474,86419.0,86418.0,0.42311435]
[1765866543938,0.042404,86419.0,86418.0,0.42311435]
[1765866546145,0.01166362,86424.0,86423.0,0.0606]
[1765866563758,9.022e-05,86424.0,86423.0,0.0606]
[1765866564160,2.2e-07,86424.0,86423.0,0.0606]
[1765866564561,0.011573,86427.0,86426.0,0.0606]
[1765866564765,0.011573,86427.0,86426.0,0.4214]
[1765866564967,0.0115724,86432.0,86429.0,0.0115726]
[1765866565166,0.0115724,86432.0,86431.0,0.0606]
[1765866565361,0.0115724,86432.0,86428.0,0.00989]
[1765866565362,0.00017351,86440.0,86439.0,0.0606]
[1765866565564,0.01174471,86440.0,86439.0,0.0606]
[1765866566063,0.00017351,86440.0,86439.0,0.0606]
[1765866566468,0.00117351,86440.0,86439.0,0.0606]
[1765866567873,0.00317351,86440.0,86439.0,0.0606]
[1765866578390,0.06152351,86440.0,86439.0,0.0606]
[1765866578688,0.00317351,86440.0,86439.0,0.0606]
[1765866585490,0.00317351,86440.0,86439.0,0.07914]
[1765866592396,0.03167351,86440.0,86439.0,0.07914]
[1765866592800,0.00317351,86440.0,86439.0,0.07914]
[1765866593201,0.03167351,86440.0,86439.0,0.07914]
[1765866593702,0.00317351,86440.0,86439.0,0.07914]
[1765866595106,0.03167351,86440.0,86439.0,0.07914]
[1765866598607,0.06152351,86440.0,86439.0,0.07914]
[1765866599509,0.03167351,86440.0,86439.0,0.07914]
[1765866599910,0.06152351,86440.0,86439.0,0.07914]
[1765866601104,0.06152351,86440.0,86439.0,0.0606]
[1765866601311,0.07309471,86440.0,86439.0,0.0606]
[1765866606606,0.06152351,86440.0,86439.0,0.0606]
[1765866612412,0.00317351,86440.0,86439.0,0.07733]
[1765866614116,0.06104351,86440.0,86439.0,0.07733]
[1765866614915,0.06104351,86440.0,86439.0,0.0606]
[1765866618621,0.06104351,86440.0,86437.0,0.3608]
[1765866618822,0.0694423,86432.0,86422.0,0.3608]
[1765866619526,0.0694435,86423.0,86422.0,0.3608]
[1765866620225,0.0694435,86423.0,86422.0,0.38964]
[1765866623036,0.069444,86419.0,86418.0,0.00231435]
[1765866625643,0.0694446,86415.0,86414.0,0.00017351]
[1765866626137,0.0694458,86406.0,86405.0,0.06896737]
[1765866626340,0.0694458,86406.0,86405.0,0.05736]
[1765866627045,0.0694458,86406.0,86405.0,0.06938843]
[1765866627632,0.0694458,86406.0,86405.0,0.07038843]
[1765866628236,0.0694458,86406.0,86405.0,0.07138843]
[1765866634043,0.0694458,86406.0,86405.0,0.01402843]
[1765866634546,0.0694458,86406.0,86405.0,0.002]
[1765866643753,0.7926058,86406.0,86405.0,0.03011]
[1765866644261,0.7926058,86406.0,86405.0,0.0597]
[1765866644748,0.7926058,86406.0,86405.0,0.002]
[1765866648860,0.0694458,86406.0,86405.0,0.0597]
[1765866649162,0.09957055,86406.0,86405.0,0.0597]
[1765866649357,0.09957055,86406.0,86405.0,0.4205]
[1765866649564,0.0694458,86406.0,86405.0,0.4205]
[1765866651356,0.09962449,86406.0,86405.0,0.4205]
[1765866655872,0.09962449,86406.0,86405.0,0.3628]
[1765866657953,0.09962449,86406.0,86405.0,0.002]
[1765866658658,0.09962449,86406.0,86405.0,0.03011]
[1765866659465,0.09962449,86406.0,86405.0,0.0597]
[1765866661162,0.09962449,86406.0,86405.0,0.002]
[1765866661966,0.0877466,86400.0,86399.0,9.56e-05]
[1765866662167,0.11792529,86400.0,86399.0,9.56e-05]
[1765866663058,0.11792529,86400.0,86399.0,0.0020956]
[1765866663458,0.11792529,86400.0,86399.0,0.0040956]
[1765866664062,0.11792529,86400.0,86399.0,0.0625556]
[1765866664063,0.07000529,86400.0,86399.0,0.0625556]
[1765866664276,0.03017869,86400.0,86399.0,0.4233556]
[1765866664466,0.01174821,86414.0,86413.0,0.05846]
[1765866664766,0.04108821,86414.0,86413.0,0.05846]
[1765866664969,0.07131273,86414.0,86413.0,0.05846]
[1765866665167,0.07108821,86414.0,86413.0,0.05846]
[1765866667775,0.04108821,86414.0,86413.0,0.05846]
[1765866669373,0.04108821,86414.0,86413.0,0.06046]
[1765866670875,0.01174821,86414.0,86413.0,0.06046]
[1765866671067,0.07108821,86414.0,86413.0,0.06046]
[1765866673079,0.07108821,86414.0,86413.0,0.05946]
[1765866675482,0.07108821,86414.0,86413.0,0.05846]
[1765866677985,0.07108821,86414.0,86413.0,0.05946]
[1765866678183,0.07108821,86414.0,86413.0,0.06046]
[1765866681977,0.07108821,86414.0,86413.0,0.05946]
[1765866682585,0.07108821,86414.0,86413.0,0.05846]
[1765866683095,0.07108821,86414.0,86413.0,0.05946]
[1765866684092,0.07108821,86414.0,86413.0,0.06046]
[1765866685183,0.07108821,86414.0,86413.0,0.42026]
[1765866685384,0.07108821,86414.0,86413.0,0.41926]
[1765866685783,0.07108821,86414.0,86413.0,0.05846]
[1765866685984,0.07108821,86414.0,86413.0,0.41926]
[1765866687379,0.07108821,86414.0,86413.0,0.42026]
[1765866687581,0.07108821,86414.0,86413.0,0.42126]
[1765866687877,0.07108821,86414.0,86413.0,0.42026]
[1765866688077,0.07108821,86414.0,86413.0,0.42126]
[1765866688480,0.07108821,86414.0,86413.0,0.41926]
[1765866688680,0.07108821,86414.0,86413.0,0.42026]
[1765866690592,0.07108821,86414.0,86413.0,0.42126]
[1765866691194,0.07108821,86414.0,86413.0,0.42026]
[1765866694598,0.07108821,86414.0,86413.0,0.41926]
[1765866702711,0.00017351,86414.0,86413.0,0.41926]
[1765866703214,0.01157441,86416.0,86415.0,0.07513]
[1765866705015,0.06785441,86416.0,86415.0,0.05788]
[1765866707013,0.06785441,86416.0,86415.0,0.41868]
[1765866708013,0.19508127,86430.0,86415.0,0.41868]
[1765866708014,0.06257666,86449.0,86448.0,0.07493]
[1765866708314,0.0115689,86457.0,86456.0,0.05788]
[1765866708507,0.0678489,86457.0,86456.0,0.06975325]
[1765866709111,0.0678489,86457.0,86456.0,0.43055325]
[1765866709914,0.0678489,86457.0,86456.0,0.43155325]
[1765866710315,0.0678489,86457.0,86456.0,0.43055325]
[1765866721327,0.0678489,86457.0,86456.0,0.40212325]
[1765866721525,0.06785,86449.0,86448.0,0.0296235]
[1765866721825,0.06785,86449.0,86448.0,0.0580535]
[1765866722019,0.06785,86449.0,86448.0,0.06980794]
[1765866724030,0.06785,86449.0,86448.0,0.07080794]
[1765866726031,0.06785,86449.0,86448.0,0.06980794]
[1765866728733,0.06785,86449.0,86448.0,0.07080794]
[1765866729030,0.06785,86449.0,86448.0,0.07180794]
[1765866729730,0.06785,86449.0,86448.0,0.07080794]
[1765866729931,0.06785,86449.0,86448.0,0.07180794]
[1765866730523,0.06785,86449.0,86448.0,0.07080794]
[1765866732530,0.06785,86449.0,86448.0,0.0306235]
[1765866734036,0.06785,86449.0,86448.0,0.0296235]
[1765866734232,0.06885,86449.0,86448.0,0.0001735]
[1765866734432,0.06885,86449.0,86448.0,0.0573335]
[1765866734632,0.06885,86449.0,86448.0,0.0293135]
[1765866735838,0.06885,86449.0,86447.0,0.02914]
[1765866735839,0.01689,86448.0,86447.0,0.02914]
[1765866736137,0.05777,86437.0,86436.0,0.44598]
[1765866736338,0.0693416,86437.0,86436.0,0.44598]
[1765866736528,0.0693416,86437.0,86436.0,0.45745732]
[1765866737333,0.0693416,86437.0,86436.0,0.45845732]
[1765866737529,0.0693416,86437.0,86436.0,0.45945732]
[1765866738933,0.0693416,86437.0,86436.0,0.45845732]
[1765866739135,0.0693416,86437.0,86436.0,0.45945732]
[1765866739934,0.0693416,86437.0,86436.0,0.04149732]
[1765866740128,0.0693416,86437.0,86436.0,0.01247732]
[1765866740328,0.4301416,86437.0,86436.0,0.002]
[1765866740530,0.45956018,86437.0,86436.0,0.001]
[1765866741334,0.0693424,86431.0,86430.0,0.01141546]
[1765866741522,0.05777,86429.0,86428.0,0.0001735]
[1765866741726,0.05777,86429.0,86428.0,0.0573335]
[1765866742840,0.05777,86429.0,86428.0,0.06899426]
[1765866756452,0.05777,86429.0,86428.0,0.0001735]
[1765866756951,0.05777,86429.0,86428.0,0.0121134]
[1765866757151,0.05777,86429.0,86428.0,0.0400034]
[1765866757355,0.05777,86429.0,86428.0,0.0280635]
[1765866757650,0.05777,86429.0,86428.0,0.0001735]
[1765866757952,0.05877,86429.0,86428.0,0.0001735]
[1765866758259,0.05977,86429.0,86428.0,0.0001735]
[1765866758550,0.05877,86429.0,86428.0,0.0001735]
[1765866758851,0.05977,86429.0,86428.0,0.0280635]
[1765866759351,0.05777,86429.0,86428.0,0.0280635]
[1765866759654,0.05977,86429.0,86428.0,0.0280635]
[1765866760444,0.05977,86429.0,86428.0,0.0564335]
[1765866760853,0.05877,86429.0,86428.0,0.0564335]
[1765866761050,0.05977,86429.0,86428.0,0.0564335]
[1765866761443,0.05877,86429.0,86428.0,0.0564335]
[1765866762753,0.05977,86429.0,86428.0,0.0564335]
[1765866763851,0.05977,86429.0,86428.0,0.0001735]
[1765866764150,0.05977,86429.0,86415.0,0.41706]
[1765866764151,0.0678944,86416.0,86415.0,0.41706]
[1765866765546,0.0678944,86416.0,86415.0,0.42975741]
[1765866765752,0.0678944,86416.0,86415.0,0.43075741]
[1765866766555,0.0858244,86416.0,86415.0,0.43075741]
[1765866767649,0.0858244,86416.0,86415.0,0.42975741]
[1765866767851,0.0858244,86416.0,86415.0,0.43075741]
[1765866768353,0.0858244,86416.0,86415.0,0.42975741]
[1765866768559,0.0858244,86416.0,86415.0,0.42875741]
[1765866769154,0.0858244,86416.0,86415.0,0.06795741]
[1765866769456,0.0858244,86416.0,86415.0,0.05626]
[1765866769852,0.0858244,86416.0,86415.0,0.06779754]
[1765866772456,0.0858244,86416.0,86415.0,0.05626]
[1765866775454,0.0678948,86413.0,86412.0,0.03953886]
[1765866775762,0.4286948,86413.0,86412.0,0.02789]
[1765866775960,0.4286948,86413.0,86412.0,0.05626]
[1765866776161,0.4286948,86413.0,86412.0,0.06772546]
[1765866776761,0.4286948,86413.0,86412.0,0.06872546]
[1765866776959,0.4286948,86413.0,86412.0,0.06972546]
[1765866777458,0.0678948,86413.0,86412.0,0.06972546]
[1765866781558,0.0115748,86413.0,86412.0,0.08653546]
[1765866784563,0.0671169,86424.0,86423.0,0.05576]
[1765866785564,0.0681169,86424.0,86423.0,0.05576]
[1765866785762,0.0127469,86424.0,86423.0,0.05576]
[1765866785961,0.0137469,86424.0,86423.0,0.05576]
[1765866787157,0.0127469,86424.0,86423.0,0.05576]
[1765866787973,0.0117469,86424.0,86423.0,0.05576]
[1765866792473,0.0115729,86428.0,86427.0,0.067333]
[1765866792864,0.05537,86440.0,86439.0,0.05576]
[1765866793168,0.0669412,86440.0,86439.0,0.05576]
[1765866794970,0.0689412,86440.0,86439.0,0.05576]
[1765866795170,0.0709412,86440.0,86439.0,0.05576]
[1765866803086,0.0883512,86440.0,86439.0,0.05576]
[1765866809283,0.1177759,86440.0,86439.0,0.05576]
[1765866824492,0.1177759,86440.0,86439.0,0.02721]
[1765866824697,0.05756,86432.0,86431.0,0.0001735]
[1765866825093,0.08704233,86432.0,86431.0,0.0001735]
[1765866825287,0.05756,86432.0,86431.0,0.0299935]
[1765866825683,0.05856,86432.0,86431.0,0.0299935]
[1765866825886,0.05956,86432.0,86431.0,0.0576435]
[1765866828999,0.05856,86432.0,86431.0,0.0576435]
[1765866829198,0.05956,86432.0,86431.0,0.0576435]
[1765866834000,0.05956,86432.0,86431.0,0.0001735]
[1765866835005,0.08914805,86432.0,86431.0,0.0001735]
[1765866836002,0.08914805,86432.0,86431.0,0.0299935]
[1765866836202,0.08814805,86432.0,86431.0,0.0299935]
[1765866836404,0.08914805,86432.0,86431.0,0.0299935]
[1765866837006,0.08814805,86432.0,86431.0,0.0299935]
[1765866837210,0.08914805,86432.0,86431.0,0.0299935]
[1765866837606,0.08914805,86432.0,86431.0,0.0576435]
[1765866838607,0.08914805,86432.0,86431.0,0.0299935]
[1765866838807,0.08914805,86432.0,86431.0,0.0001735]
[1765866839611,0.08914805,86432.0,86412.0,0.02811546]
[1765866839612,0.0691335,86423.0,86422.0,0.41827]
[1765866840310,0.0411335,86423.0,86422.0,0.41827]
[1765866840622,0.0691335,86423.0,86422.0,0.41827]
[1765866844117,0.0691335,86423.0,86422.0,0.39062]
[1765866844611,0.0691335,86423.0,86422.0,0.41976]
[1765866844913,0.0690644,86416.0,86415.0,0.41843]
[1765866845511,0.0690644,86416.0,86415.0,0.38929]
[1765866846011,0.0690644,86416.0,86415.0,0.41843]
[1765866846215,0.0690644,86416.0,86415.0,0.41943]
[1765866847321,0.0690644,86416.0,86415.0,0.001]
[1765866847518,0.4298644,86416.0,86415.0,0.001]
[1765866847722,0.4298644,86416.0,86415.0,0.05863]
[1765866848222,0.4298644,86416.0,86415.0,0.05963]
[1765866849723,0.4298644,86416.0,86415.0,0.03049]
[1765866850026,0.4298644,86416.0,86415.0,0.002]
[1765866851016,0.0690656,86407.0,86406.0,0.02849]
[1765866851211,0.0690656,86407.0,86406.0,0.05763]
[1765866852215,0.0690656,86407.0,86406.0,0.06163]
[1765866853325,0.0690656,86407.0,86406.0,0.004]
[1765866853627,0.0690656,86407.0,86406.0,0.06163]
[1765866857519,0.7621656,86407.0,86406.0,0.06163]
[1765866857826,0.0390056,86407.0,86406.0,0.06163]
[1765866859831,0.0690656,86407.0,86406.0,0.06163]
[1765866879237,0.09869461,86407.0,86406.0,0.06163]
[1765866879936,0.0115756,86407.0,86406.0,0.07293]
[1765866880836,0.0406056,86407.0,86406.0,0.07293]
[1765866882535,0.0684956,86407.0,86406.0,0.06163]
[1765866883131,0.0115756,86407.0,86406.0,0.07794]
[1765866884440,0.0406056,86407.0,86406.0,0.07794]
[1765866884641,0.0684956,86407.0,86406.0,0.07794]
[1765866884939,0.0684956,86407.0,86406.0,0.06163]
[1765866892142,0.0115756,86407.0,86406.0,0.07325]
[1765866896038,0.0406056,86407.0,86406.0,0.07325]
[1765866897549,0.0115756,86407.0,86406.0,0.07325]
[1765866898353,0.0406056,86407.0,86406.0,0.07325]
[1765866899250,0.0406056,86407.0,86406.0,0.06163]
[1765866899251,0.0684956,86407.0,86406.0,0.06163]
[1765866902051,0.0115756,86407.0,86406.0,0.06163]
[1765866902546,0.07367,86418.0,86417.0,0.05893]
[1765866902745,0.0685342,86418.0,86417.0,0.05893]
[1765866904064,0.0001735,86424.0,86423.0,0.0705035]
[1765866904244,0.05696,86441.0,86440.0,0.05893]
[1765866905243,0.0685311,86441.0,86440.0,0.05893]
[1765866905553,0.0705311,86441.0,86440.0,0.02919]
[1765866906052,0.0685318,86436.0,86435.0,0.41973]
[1765866907246,0.0695318,86436.0,86435.0,0.41973]
[1765866907445,0.0705318,86436.0,86435.0,0.41973]
[1765866910461,0.0868518,86436.0,86435.0,0.41973]
[1765866915859,0.0868518,86436.0,86435.0,0.05893]
[1765866922767,0.0868518,86436.0,86435.0,0.02919]
[1765866922967,0.05696,86434.0,86433.0,0.3608]
[1765866923263,0.05696,86434.0,86433.0,0.41973]
[1765866924567,0.05796,86434.0,86433.0,0.41973]
[1765866925170,0.05896,86434.0,86433.0,0.41973]
[1765866927462,0.05896,86434.0,86433.0,0.05893]
[1765866929872,0.02733,86423.0,86406.0,0.3608]
[1765866930061,0.4293335,86423.0,86422.0,0.05893]
[1765866930259,0.0685335,86423.0,86422.0,0.05893]
[1765866934067,0.0874144,86416.0,86415.0,0.41797]
[1765866935678,0.0701344,86416.0,86415.0,0.41797]
[1765866935858,0.0115744,86416.0,86415.0,0.41797]
[1765866936369,0.0701344,86416.0,86415.0,0.41797]
[1765866937372,0.0115744,86416.0,86415.0,0.41797]
[1765866938180,0.0407944,86416.0,86415.0,0.41797]
[1765866938376,0.0701344,86416.0,86415.0,0.41797]
[1765866940266,0.0407944,86416.0,86415.0,0.41797]
[1765866940563,0.0115744,86416.0,86415.0,0.41797]
[1765866941362,0.0115744,86416.0,86415.0,0.41897]
[1765866942274,0.0115744,86416.0,86415.0,0.41797]
[1765866945580,0.0115744,86416.0,86415.0,0.4295446]
[1765866946180,0.0703059,86431.0,86430.0,0.05717]
[1765866947480,0.0713059,86431.0,86430.0,0.05717]
[1765866947780,0.0723059,86431.0,86430.0,0.05717]
[1765866950574,0.0137459,86431.0,86430.0,0.05717]
[1765866951474,0.0429659,86431.0,86430.0,0.05717]
[1765866951675,0.0723059,86431.0,86430.0,0.05717]
[1765866956079,0.10194461,86431.0,86430.0,0.05717]
[1765866956281,0.0723059,86431.0,86430.0,0.05717]
[1765866956685,0.0137459,86431.0,86430.0,0.05717]
[1765866956980,0.0021735,86431.0,86430.0,0.05717]
[1765866957489,0.0137459,86431.0,86430.0,0.05717]
[1765866960590,0.0137459,86431.0,86430.0,0.0687426]
[1765866961296,0.0137459,86431.0,86430.0,0.05717]
[1765866962590,0.0021735,86431.0,86430.0,0.05717]
[1765866966296,0.0137459,86431.0,86430.0,0.05717]
[1765866966496,0.0713559,86431.0,86430.0,0.05717]
[1765866970903,0.0021735,86431.0,86430.0,0.05717]
[1765866971193,0.0115674,86469.0,86457.0,0.0682789]
[1765866971398,0.0115674,86469.0,86457.0,1.1524389]
[1765866971990,0.0001735,86466.0,86457.0,1.1524389]
[1765866973299,0.0001735,86466.0,86457.0,1.24445277]
[1765866973701,0.0001735,86466.0,86457.0,1.24345277]
[1765866973902,0.0001735,86466.0,86457.0,1.24545277]
[1765866974087,0.0001735,86466.0,86457.0,1.24745277]
[1765866974605,0.0001735,86466.0,86457.0,1.1564389]
[1765866975302,0.0115681,86464.0,86457.0,1.1564389]
[1765866975597,0.0001735,86466.0,86457.0,1.1564389]
[1765866975801,0.0115679,86465.0,86457.0,1.1564389]
[1765866976403,0.0115679,86465.0,86457.0,0.4330789]
[1765866976600,0.0115679,86465.0,86457.0,1.1545189]
[1765866976798,0.0115679,86465.0,86457.0,1.1565189]
[1765866977192,0.0115679,86465.0,86457.0,1.5173189]
[1765866977394,0.0115679,86465.0,86457.0,1.5153189]
[1765866977595,0.0115679,86465.0,86457.0,1.5173189]
[1765866978701,0.0001735,86466.0,86457.0,1.5173189]
[1765866978900,0.0115683,86463.0,86457.0,1.5173189]
[1765866980202,0.07149208,86458.0,86457.0,1.50563]
[1765866980403,0.03090328,86458.0,86457.0,0.78231]
[1765866980602,0.00231328,86458.0,86457.0,1.37119]
[1765866983812,0.00231328,86458.0,86457.0,1.36919]
[1765866984010,0.00231328,86458.0,86457.0,1.37119]
[1765866986211,0.00231328,86458.0,86457.0,1.36919]
[1765866986508,0.00231328,86458.0,86457.0,1.37119]
[1765866988011,0.05992328,86458.0,86457.0,1.50543]
[1765866988211,0.05992328,86458.0,86457.0,0.78231]
[1765866988409,0.05992328,86458.0,86457.0,0.03258]
[1765866988607,0.05992328,86458.0,86457.0,0.06071]
[1765866989008,0.05992328,86458.0,86457.0,0.0722789]
[1765866989415,0.05992328,86458.0,86457.0,0.06071]
[1765866989616,0.05992328,86458.0,86457.0,0.05671]
[1765866989916,0.05992328,86458.0,86457.0,0.05871]
[1765866991013,0.05992328,86458.0,86457.0,0.05671]
[1765866998238,0.06012328,86458.0,86457.0,0.05671]
[1765866999527,0.06012328,86458.0,86457.0,0.05771]
[1765866999923,0.06012328,86458.0,86457.0,0.0692789]
[1765867000517,0.06012328,86458.0,86457.0,0.05771]
[1765867000717,0.06012328,86458.0,86457.0,0.05871]
[1765867003529,0.03025328,86458.0,86457.0,0.05871]
[1765867003730,0.00231328,86458.0,86457.0,0.05871]
[1765867004222,0.06012328,86458.0,86457.0,0.05871]
[1765867004713,0.06012328,86458.0,86457.0,0.41951]
[1765867005525,0.06012328,86458.0,86457.0,0.05871]
[1765867005739,0.06012328,86458.0,86457.0,0.41951]
[1765867005924,0.06012328,86458.0,86457.0,0.05871]
[1765867006125,0.06012328,86458.0,86457.0,0.41951]
[1765867006723,0.00231328,86458.0,86457.0,0.41951]
[1765867007420,0.06012328,86458.0,86457.0,0.41951]
[1765867008330,0.06012328,86458.0,86457.0,0.4310789]
[1765867016539,0.06012328,86458.0,86457.0,0.41951]
[1765867016836,0.06012328,86458.0,86457.0,0.4310789]
[1765867017134,0.06012328,86458.0,86457.0,0.41951]
[1765867023530,0.00231328,86458.0,86457.0,0.41951]
[1765867030740,0.00231328,86458.0,86457.0,0.42951]
[1765867030940,0.00019708,86458.0,86457.0,0.45951]
[1765867031143,0.00019708,86458.0,86457.0,0.46951]
[1765867031343,0.0115669,86473.0,86465.0,0.05647]
[1765867031539,0.011566,86479.0,86465.0,1.1518779]
[1765867031839,0.01786,86480.0,86465.0,1.1518779]
[1765867031840,0.0115663,86477.0,86465.0,1.1518779]
[1765867032142,0.0115658,86481.0,86465.0,1.1518779]
[1765867032345,0.0115661,86479.0,86465.0,1.1518779]
[1765867033645,0.17668071,86480.0,86465.0,1.1518779]
[1765867034447,0.0115661,86478.0,86465.0,1.1518779]
[1765867034635,0.0115661,86478.0,86465.0,1.1528779]
[1765867034835,0.0115658,86481.0,86465.0,1.1528779]
[1765867035037,0.0115661,86479.0,86465.0,1.1528779]
[1765867036444,0.0115664,86477.0,86465.0,1.1528779]
[1765867037141,0.0115667,86474.0,86465.0,1.1528779]
[1765867037445,0.0115669,86473.0,86465.0,1.1528779]
[1765867037744,0.0115663,86477.0,86465.0,1.1528779]
[1765867037936,0.0115658,86481.0,86465.0,1.1528779]
[1765867038131,0.0115661,86479.0,86465.0,1.1528779]
[1765867038640,0.0115664,86477.0,86465.0,1.1528779]
[1765867039639,0.18824661,86480.0,86465.0,1.1528779]
[1765867040136,0.0165,86484.0,86465.0,1.1528779]
[1765867041350,0.0115659,86480.0,86465.0,1.1528779]
[1765867043255,0.05934,86480.0,86479.0,0.068036]
[1765867043450,0.05934,86480.0,86479.0,0.428836]
[1765867044145,0.23602071,86490.0,86489.0,0.05647]
[1765867044451,0.05734,86490.0,86489.0,0.05647]
[1765867044841,0.0689045,86490.0,86489.0,0.05647]
[1765867045246,0.011564,86495.0,86489.0,0.05647]
[1765867045448,0.0709049,86487.0,86486.0,0.3608]
[1765867045846,0.0709049,86487.0,86486.0,0.38938]
[1765867046161,0.0709049,86487.0,86486.0,0.41727]
[1765867048052,0.0729049,86487.0,86486.0,0.41727]
[1765867049348,0.0729049,86487.0,86486.0,0.3608]
[1765867049555,0.0729049,86487.0,86481.0,0.0001735]
[1765867049556,0.0709056,86482.0,86481.0,0.0001735]
[1765867050556,0.0719056,86482.0,86481.0,0.0001735]
[1765867053454,0.0709056,86482.0,86481.0,0.0001735]
[1765867061651,0.0709056,86482.0,86481.0,0.0296335]
[1765867062556,0.0709056,86482.0,86481.0,0.0590835]
[1765867079162,0.0709056,86482.0,86481.0,0.4198835]
[1765867085175,0.0709056,86482.0,86481.0,0.0001735]
[1765867085675,0.0709056,86482.0,86481.0,0.0278635]
[1765867085876,0.0709056,86482.0,86481.0,0.0557835]
[1765867088776,0.0709056,86482.0,86481.0,0.0001735]
[1765867089481,0.0709056,86482.0,86481.0,0.0278635]
[1765867090575,0.0709056,86482.0,86481.0,0.0557835]
[1765867090881,0.0709056,86482.0,86481.0,0.0730435]
[1765867093988,0.0709056,86482.0,86481.0,0.0001735]
[1765867094780,0.10041642,86482.0,86481.0,0.0001735]
[1765867097778,0.0679668,86473.0,86472.0,0.3608]